[Event "MCR rapid mládeže 2023 U16"]
[Site "Harachov, Czech Republic"]
[Date "2023.09.09"]
[Round "6.27"]
[White "Kadlecova, Alena"]
[Black "Barteckova, Nikol"]
[Result "0-1"]
[TimeControl "20min+5s/move"]
[WhiteElo "1020"]
[BlackElo "1246"]

1. e4 {[%clk 00:20:08]} {[%emt 00:07:42]} c5 {[%clk 00:20:09]} {[%emt
00:00:02]} 2. Nf3 {[%clk 00:20:10]} {[%emt 00:00:03]} d6 {[%clk 00:20:12]}
{[%emt 00:00:02]} 3. d4 {[%clk 00:20:12]} {[%emt 00:00:03]} cxd4 {[%clk
00:20:16]} {[%emt 00:00:01]} 4. Nxd4 {[%clk 00:20:16]} {[%emt 00:00:02]} Nf6
{[%clk 00:20:20]} 5. Nc3 {[%clk 00:20:14]} {[%emt 00:00:06]} Nc6 {[%clk
00:20:22]} {[%emt 00:00:04]} 6. Bg5 {[%clk 00:20:12]} {[%emt 00:00:07]} e6
{[%clk 00:20:10]} {[%emt 00:00:17]} 7. Bb5 {[%clk 00:20:05]} {[%emt 00:00:12]}
Bd7 {[%clk 00:20:06]} {[%emt 00:00:10]} 8. O-O {[%clk 00:20:02]} {[%emt
00:00:07]} Be7 {[%clk 00:20:09]} {[%emt 00:00:03]} 9. h3 {[%clk 00:19:35]}
{[%emt 00:00:30]} Qc7 {[%clk 00:19:49]} {[%emt 00:00:25]} 10. Re1 {[%clk
00:19:16]} {[%emt 00:00:19]} O-O {[%clk 00:19:42]} {[%emt 00:00:13]} 11. Bxc6
{[%clk 00:19:11]} {[%emt 00:00:14]} bxc6 {[%clk 00:19:44]} {[%emt 00:00:04]} 12.
Qf3 {[%clk 00:18:42]} {[%emt 00:00:32]} h6 {[%clk 00:19:25]} {[%emt 00:00:25]}
13. Bh4 {[%clk 00:18:34]} {[%emt 00:00:11]} e5 {[%clk 00:19:17]} {[%emt
00:00:16]} 14. Nf5 {[%clk 00:18:29]} {[%emt 00:00:09]} Bxf5 {[%clk 00:19:14]}
{[%emt 00:00:09]} 15. Qxf5 {[%clk 00:18:29]} {[%emt 00:00:04]} Rab8 {[%clk
00:19:08]} {[%emt 00:00:11]} 16. Rab1 {[%clk 00:18:29]} {[%emt 00:00:05]} Rfe8
{[%clk 00:18:49]} {[%emt 00:00:24]} 17. f4 {[%clk 00:17:18]} {[%emt 00:01:15]}
g6 {[%clk 00:18:00]} {[%emt 00:00:56]} 18. Qxf6 {[%clk 00:17:10]} {[%emt
00:00:12]} Bxf6 {[%clk 00:18:03]} {[%emt 00:00:02]} 19. Bxf6 {[%clk 00:17:12]}
{[%emt 00:00:03]} exf4 {[%clk 00:18:04]} {[%emt 00:00:05]} 20. Bd4 {[%clk
00:16:40]} {[%emt 00:00:35]} Qd7 {[%clk 00:17:17]} {[%emt 00:00:53]} 21. e5
{[%clk 00:16:09]} {[%emt 00:00:36]} c5 {[%clk 00:17:03]} {[%emt 00:00:19]} 22.
Bf2 {[%clk 00:16:01]} {[%emt 00:00:12]} Qc6 {[%clk 00:16:01]} {[%emt 00:01:08]}
23. exd6 {[%clk 00:15:43]} {[%emt 00:00:23]} Qxd6 {[%clk 00:15:50]} {[%emt
00:00:15]} 24. Rxe8+ {[%clk 00:15:40]} {[%emt 00:00:09]} Rxe8 {[%clk 00:15:53]}
{[%emt 00:00:03]} 25. Rd1 {[%clk 00:15:38]} {[%emt 00:00:06]} Qc6 {[%clk
00:15:22]} {[%emt 00:00:31]} 26. a3 {[%clk 00:14:38]} {[%emt 00:01:11]} f3
{[%clk 00:15:13]} {[%emt 00:00:14]} 27. g3 {[%clk 00:14:14]} {[%emt 00:00:26]}
Kh7 {[%clk 00:14:46]} {[%emt 00:00:34]} 28. Kh2 {[%clk 00:13:35]} {[%emt
00:00:43]} Qb7 {[%clk 00:13:45]} {[%emt 00:01:01]} 29. Na4 {[%clk 00:13:15]}
{[%emt 00:00:31]} Re2 {[%clk 00:13:27]} {[%emt 00:00:24]} 30. Kg1 {[%clk
00:13:03]} {[%emt 00:00:15]} Qb5 {[%clk 00:12:15]} {[%emt 00:01:11]} 31. Nc3
{[%clk 00:12:52]} {[%emt 00:00:23]} Qxb2 {[%clk 00:11:44]} {[%emt 00:00:36]} 32.
Nxe2 {[%clk 00:12:54]} {[%emt 00:00:03]} fxe2 {[%clk 00:11:47]} {[%emt
00:00:03]} 33. Re1 {[%clk 00:12:57]} {[%emt 00:00:01]} Qxc2 {[%clk 00:11:48]}
{[%emt 00:00:04]} 34. Kg2 {[%clk 00:12:54]} {[%emt 00:00:07]} Qe4+ {[%clk
00:11:45]} {[%emt 00:00:08]} 35. Kg1 {[%clk 00:12:56]} {[%emt 00:00:04]} c4
{[%clk 00:11:34]} {[%emt 00:00:17]} 36. Bxa7 {[%clk 00:12:52]} {[%emt
00:00:08]} c3 {[%clk 00:11:35]} {[%emt 00:00:04]} 37. Bf2 {[%clk 00:12:51]}
{[%emt 00:00:05]} c2 {[%clk 00:11:36]} {[%emt 00:00:06]} 38. a4 {[%clk
00:12:50]} {[%emt 00:00:06]} Qxa4 {[%clk 00:11:31]} {[%emt 00:00:10]} 39. Kg2
{[%clk 00:12:47]} {[%emt 00:00:08]} Qc4 {[%clk 00:11:12]} {[%emt 00:00:15]} 40.
Kg1 {[%clk 00:12:47]} {[%emt 00:00:14]} c1=Q {[%clk 00:11:00]} {[%emt
00:00:16]} 41. Rxc1 {[%clk 00:12:49]} {[%emt 00:00:03]} Qxc1+ {[%clk 00:11:04]}
{[%emt 00:00:02]} 42. Kg2 {[%clk 00:12:49]} {[%emt 00:00:05]} e1=Q {[%clk
00:10:51]} {[%emt 00:00:17]} 43. Bxe1 {[%clk 00:12:51]} {[%emt 00:00:03]} Qxe1
{[%clk 00:10:54]} {[%emt 00:00:01]} 44. h4 {[%clk 00:12:52]} {[%emt 00:00:05]}
Qe2+ {[%clk 00:10:54]} {[%emt 00:00:03]} 45. Kh3 {[%clk 00:12:56]} {[%emt
00:00:03]} Qf1+ {[%emt 00:00:20]} 46. Kh2 {[%clk 00:12:53]} {[%emt 00:00:01]}
Qf2+ {[%clk 00:10:45]} {[%emt 00:00:05]} 47. Kh3 {[%clk 00:12:53]} {[%emt
00:00:05]} Qxg3+ {[%clk 00:10:45]} {[%emt 00:00:06]} 48. Kxg3 {[%clk 00:12:54]}
{[%emt 00:00:03]} f5 {[%clk 00:10:48]} {[%emt 00:00:02]} 49. Kf4 {[%clk
00:12:54]} {[%emt 00:00:05]} Kg7 {[%clk 00:10:50]} {[%emt 00:00:03]} 50. Kg3
{[%clk 00:12:42]} {[%emt 00:00:17]} Kf6 {[%clk 00:10:53]} {[%emt 00:00:02]} 51.
Kf4 {[%clk 00:12:45]} {[%emt 00:00:02]} g5+ {[%clk 00:10:56]} {[%emt 00:00:03]}
52. hxg5+ {[%clk 00:12:48]} {[%emt 00:00:02]} hxg5+ {[%clk 00:10:59]} {[%emt
00:00:01]} 53. Kg3 {[%clk 00:12:51]} {[%emt 00:00:02]} f4+ {[%clk 00:11:03]}
{[%emt 00:00:02]} 54. Kg4 {[%clk 00:12:54]} {[%emt 00:00:02]} Kg6 {[%clk
00:11:03]} {[%emt 00:00:04]} 55. Kf3 {[%clk 00:12:55]} {[%emt 00:00:04]} Kf5
{[%clk 00:11:07]} {[%emt 00:00:02]} 56. Kf2 {[%clk 00:12:54]} {[%emt 00:00:04]}
g4 {[%clk 00:11:10]} {[%emt 00:00:03]} 57. Kg2 {[%clk 00:12:55]} {[%emt
00:00:04]} Ke4 {[%clk 00:11:13]} {[%emt 00:00:03]} 58. Kf2 {[%clk 00:12:58]}
{[%emt 00:00:02]} f3 {[%clk 00:11:12]} {[%emt 00:00:06]} 59. Kg1 {[%clk
00:12:44]} {[%emt 00:00:17]} g3 {[%clk 00:11:15]} {[%emt 00:00:04]} 60. Kf1
{[%clk 00:12:45]} {[%emt 00:00:03]} Ke3 {[%clk 00:11:18]} {[%emt 00:00:03]} 61.
Kg1 {[%clk 00:12:47]} {[%emt 00:00:02]} f2+ {[%clk 00:11:21]} {[%emt 00:00:02]}
62. Kf1 {[%clk 00:12:46]} {[%emt 00:00:07]} g2+ {[%clk 00:11:20]} {[%emt
00:00:06]} 63. Kxg2 {[%clk 00:12:48]} {[%emt 00:00:02]} Ke2 {[%clk 00:11:23]}
{[%emt 00:00:03]} 64. Kh3 {[%clk 00:12:50]} {[%emt 00:00:02]} f1=Q+ {[%clk
00:11:24]} {[%emt 00:00:04]} 65. Kh4 {[%clk 00:12:53]} {[%emt 00:00:02]} Qg1
{[%clk 00:11:28]} {[%emt 00:00:01]} 66. Kh5 {[%clk 00:12:57]} {[%emt 00:00:02]}
Kf3 {[%clk 00:11:32]} {[%emt 00:00:01]} 67. Kh6 {[%clk 00:13:00]} {[%emt
00:00:02]} Kf4 {[%clk 00:11:36]} {[%emt 00:00:01]} 68. Kh7 {[%clk 00:13:04]}
{[%emt 00:00:01]} Kf5 {[%clk 00:11:40]} {[%emt 00:00:02]} 69. Kh8 {[%clk
00:13:07]} Kf6 {[%clk 00:11:43]} {[%emt 00:00:02]} 70. Kh7 {[%clk 00:13:10]}
{[%emt 00:00:02]} Qg7+ {[%clk 00:11:47]} {[%emt 00:00:01]} 0-1

[Event "MCR rapid mládeže 2023 U16"]
[Site "Harachov, Czech Republic"]
[Date "2023.09.09"]
[Round "6.28"]
[White "Hujova, Tess"]
[Black "Trcalkova, Ema"]
[Result "1-0"]
[TimeControl "20min+5s/move"]
[WhiteElo "1104"]
[BlackElo "1306"]

1. e4 {[%clk 00:20:06]} {[%emt 00:00:04]} e5 {[%clk 00:20:07]} {[%emt
00:00:04]} 2. Nf3 {[%clk 00:20:09]} {[%emt 00:00:01]} Nc6 {[%clk 00:20:08]}
{[%emt 00:00:04]} 3. d4 {[%clk 00:20:13]} {[%emt 00:00:02]} exd4 {[%clk
00:20:06]} {[%emt 00:00:07]} 4. Nxd4 {[%clk 00:20:03]} {[%emt 00:00:14]} Bc5
{[%clk 00:19:49]} {[%emt 00:00:22]} 5. Be3 {[%clk 00:20:04]} {[%emt 00:00:04]}
Nxd4 {[%clk 00:19:17]} {[%emt 00:00:36]} 6. Bxd4 {[%clk 00:20:03]} {[%emt
00:00:06]} Bf8 {[%clk 00:18:24]} {[%emt 00:00:59]} 7. Bc4 {[%clk 00:19:56]}
{[%emt 00:00:12]} d6 {[%clk 00:17:57]} {[%emt 00:00:32]} 8. Qf3 {[%clk
00:19:44]} {[%emt 00:00:16]} Nf6 {[%clk 00:17:41]} {[%emt 00:00:22]} 9. Nc3
{[%clk 00:19:28]} {[%emt 00:00:20]} Be7 {[%clk 00:17:28]} {[%emt 00:00:18]} 10.
Nd5 {[%clk 00:19:10]} {[%emt 00:00:23]} c6 {[%clk 00:15:30]} {[%emt 00:02:04]}
11. Nxf6+ {[%clk 00:18:27]} {[%emt 00:00:48]} Bxf6 {[%clk 00:15:29]} {[%emt
00:00:06]} 12. Bxf6 {[%clk 00:18:27]} {[%emt 00:00:05]} Qxf6 {[%clk 00:14:05]}
{[%emt 00:01:29]} 13. Qxf6 {[%clk 00:18:28]} {[%emt 00:00:04]} gxf6 {[%clk
00:14:08]} {[%emt 00:00:03]} 14. O-O-O {[%clk 00:18:26]} {[%emt 00:00:06]} Rg8
{[%clk 00:12:01]} {[%emt 00:02:12]} 15. g3 {[%clk 00:18:23]} {[%emt 00:00:06]}
Kd7 {[%clk 00:10:35]} {[%emt 00:01:33]} 16. Bxf7 {[%clk 00:18:19]} {[%emt
00:00:08]} Rg7 {[%clk 00:10:08]} {[%emt 00:00:31]} 17. Bb3 {[%clk 00:18:04]}
{[%emt 00:00:22]} Kc7 {[%clk 00:09:36]} {[%emt 00:00:37]} 18. Rd3 {[%clk
00:17:54]} {[%emt 00:00:13]} Bh3 {[%clk 00:08:10]} {[%emt 00:01:33]} 19. Rhd1
{[%clk 00:17:28]} {[%emt 00:00:28]} Rd8 {[%clk 00:07:42]} {[%emt 00:00:37]} 20.
c4 {[%clk 00:16:31]} {[%emt 00:01:02]} Rdd7 {[%clk 00:06:32]} {[%emt 00:01:14]}
21. R1d2 {[%clk 00:15:32]} {[%emt 00:01:02]} a6 {[%clk 00:03:31]} {[%emt
00:03:08]} 22. Rf3 {[%clk 00:15:13]} {[%emt 00:00:22]} Bg2 {[%clk 00:03:00]}
{[%emt 00:00:38]} 23. Rf4 {[%clk 00:14:57]} {[%emt 00:00:20]} Rg6 {[%clk
00:02:06]} {[%emt 00:01:00]} 24. f3 {[%clk 00:14:56]} {[%emt 00:00:06]} Bh3
{[%clk 00:02:06]} {[%emt 00:00:05]} 25. Rh4 {[%clk 00:14:49]} {[%emt 00:00:11]}
Be6 {[%clk 00:02:03]} {[%emt 00:00:09]} 26. f4 {[%clk 00:14:24]} {[%emt
00:00:31]} Bg8 {[%clk 00:01:39]} {[%emt 00:00:28]} 27. f5 {[%clk 00:14:19]}
{[%emt 00:00:11]} Rgg7 {[%clk 00:01:05]} {[%emt 00:00:39]} 28. Rh6 {[%clk
00:14:05]} {[%emt 00:00:17]} Rg4 {[%clk 00:00:25]} {[%emt 00:00:46]} 29. Re2
{[%clk 00:13:37]} {[%emt 00:00:32]} Re7 {[%clk 00:00:00]} {[%emt 00:00:39]} 30.
Rxf6 {[%clk 00:13:37]} {[%emt 00:00:17]} 1-0

[Event "MCR rapid mládeže 2023 U16"]
[Site "Harachov, Czech Republic"]
[Date "2023.09.09"]
[Round "6.29"]
[White "Fadrny, Jachym"]
[Black "Velim, Vojtech"]
[Result "0-1"]
[TimeControl "20min+5s/move"]
[WhiteElo "1347"]
[BlackElo "1799"]

1. e4 {[%clk 00:20:08]} {[%emt 00:00:02]} c6 {[%clk 00:20:07]} {[%emt
00:00:03]} 2. Nc3 {[%clk 00:20:08]} {[%emt 00:00:06]} d5 {[%clk 00:20:10]}
{[%emt 00:00:01]} 3. Nf3 {[%clk 00:20:11]} {[%emt 00:00:02]} Bg4 {[%clk
00:20:11]} {[%emt 00:00:04]} 4. h3 {[%clk 00:20:13]} {[%emt 00:00:03]} Bh5
{[%clk 00:20:15]} {[%emt 00:00:01]} 5. exd5 {[%clk 00:20:15]} {[%emt 00:00:03]}
cxd5 {[%clk 00:20:19]} 6. Bb5+ {[%clk 00:20:18]} {[%emt 00:00:02]} Nc6 {[%clk
00:20:24]} {[%emt 00:00:02]} 7. g4 {[%clk 00:20:20]} {[%emt 00:00:03]} Bg6
{[%clk 00:20:28]} 8. Ne5 {[%clk 00:20:22]} {[%emt 00:00:03]} Rc8 {[%clk
00:20:32]} {[%emt 00:00:01]} 9. d4 {[%clk 00:20:23]} {[%emt 00:00:04]} e6
{[%clk 00:20:34]} {[%emt 00:00:02]} 10. Qe2 {[%clk 00:20:25]} {[%emt 00:00:03]}
Bb4 {[%clk 00:20:31]} {[%emt 00:00:09]} 11. O-O {[%clk 00:19:13]} {[%emt
00:01:17]} Nge7 {[%clk 00:19:43]} {[%emt 00:00:52]} 12. Bg5 {[%clk 00:18:00]}
{[%emt 00:01:18]} Bxc3 {[%clk 00:18:22]} {[%emt 00:01:26]} 13. bxc3 {[%clk
00:17:19]} {[%emt 00:00:47]} f6 {[%clk 00:18:26]} 14. Nxg6 {[%clk 00:17:03]}
{[%emt 00:00:21]} hxg6 {[%clk 00:18:27]} {[%emt 00:00:03]} 15. Bf4 {[%clk
00:17:06]} {[%emt 00:00:02]} Kf7 {[%clk 00:18:27]} {[%emt 00:00:05]} 16. Kg2
{[%clk 00:16:22]} {[%emt 00:00:49]} a6 {[%clk 00:17:31]} {[%emt 00:01:02]} 17.
Bd3 {[%clk 00:16:00]} {[%emt 00:00:27]} g5 {[%clk 00:17:15]} {[%emt 00:00:21]}
18. Bg3 {[%clk 00:15:52]} {[%emt 00:00:13]} Na5 {[%clk 00:16:39]} {[%emt
00:00:41]} 19. Rae1 {[%clk 00:15:02]} {[%emt 00:00:55]} Qd7 {[%clk 00:15:42]}
{[%emt 00:01:02]} 20. Qd2 {[%clk 00:14:41]} {[%emt 00:00:26]} Qc6 {[%clk
00:13:51]} {[%emt 00:01:55]} 21. Re3 {[%clk 00:13:52]} {[%emt 00:00:54]} Nc4
{[%clk 00:13:01]} {[%emt 00:00:56]} 22. Bxc4 {[%emt 00:00:12]} Qxc4 {[%clk
00:12:46]} {[%emt 00:00:15]} 23. Rfe1 {[%clk 00:13:51]} {[%emt 00:00:04]} Rc6
{[%clk 00:12:46]} {[%emt 00:00:05]} 24. a3 {[%clk 00:12:37]} {[%emt 00:01:19]}
Rb6 {[%clk 00:10:12]} {[%emt 00:02:38]} 25. Rf3 {[%clk 00:11:31]} {[%emt
00:01:12]} Ke8 {[%clk 00:09:20]} {[%emt 00:00:56]} 26. Rfe3 {[%clk 00:10:25]}
{[%emt 00:01:11]} Kd7 {[%clk 00:09:02]} {[%emt 00:00:23]} 27. Qe2 {[%clk
00:10:11]} {[%emt 00:00:19]} Qxe2 {[%clk 00:08:55]} {[%emt 00:00:13]} 28. R1xe2
{[%clk 00:10:14]} {[%emt 00:00:02]} Ng6 {[%clk 00:08:47]} {[%emt 00:00:13]} 29.
Rd3 {[%clk 00:09:39]} {[%emt 00:00:40]} Rc8 {[%clk 00:08:39]} {[%emt 00:00:12]}
30. Rde3 {[%clk 00:08:13]} {[%emt 00:01:31]} Rc4 {[%clk 00:08:36]} {[%emt
00:00:08]} 31. Bb8 {[%clk 00:06:51]} {[%emt 00:01:27]} Ra4 {[%clk 00:08:31]}
{[%emt 00:00:11]} 32. Ba7 {[%clk 00:06:17]} {[%emt 00:00:38]} Rc6 {[%clk
00:08:24]} {[%emt 00:00:12]} 33. Re1 {[%clk 00:05:41]} {[%emt 00:00:41]} Nf4+
{[%clk 00:07:59]} {[%emt 00:00:30]} 34. Kg3 {[%clk 00:05:21]} {[%emt 00:00:26]}
Ng6 {[%clk 00:07:32]} {[%emt 00:00:32]} 35. Rb1 {[%clk 00:03:52]} {[%emt
00:01:34]} Kc7 {[%clk 00:07:11]} {[%emt 00:00:25]} 36. Rbe1 {[%clk 00:01:36]}
{[%emt 00:02:22]} Nf4 {[%clk 00:04:11]} {[%emt 00:03:05]} 37. Bc5 {[%clk
00:01:21]} {[%emt 00:00:19]} e5 {[%clk 00:03:09]} {[%emt 00:01:08]} 38. Bf8
{[%clk 00:01:04]} {[%emt 00:00:21]} Ne6 {[%clk 00:02:33]} {[%emt 00:00:41]} 39.
Be7 {[%clk 00:00:27]} {[%emt 00:00:42]} Kd7 {[%clk 00:02:34]} {[%emt 00:00:05]}
40. Bxf6 {[%clk 00:00:29]} {[%emt 00:00:03]} gxf6 {[%clk 00:02:34]} {[%emt
00:00:05]} 41. dxe5 {[%clk 00:00:31]} {[%emt 00:00:03]} fxe5 {[%clk 00:02:14]}
{[%emt 00:00:26]} 42. Rxe5 {[%clk 00:00:33]} {[%emt 00:00:02]} Rxa3 {[%clk
00:01:47]} {[%emt 00:00:31]} 43. Rxd5+ {[%clk 00:00:24]} {[%emt 00:00:14]} Kc7
{[%clk 00:01:48]} {[%emt 00:00:04]} 44. Rde5 {[%clk 00:00:24]} {[%emt
00:00:05]} Rcxc3+ {[%clk 00:01:38]} {[%emt 00:00:15]} 45. Kg2 {[%clk 00:00:23]}
{[%emt 00:00:05]} Nf4+ {[%clk 00:01:41]} {[%emt 00:00:03]} 46. Kf1 {[%clk
00:00:26]} {[%emt 00:00:03]} Rxh3 {[%clk 00:01:37]} {[%emt 00:00:09]} 47. Re7+
{[%clk 00:00:28]} {[%emt 00:00:02]} Kd6 {[%clk 00:01:24]} {[%emt 00:00:18]} 48.
R1e6+ {[%clk 00:00:30]} {[%emt 00:00:04]} Nxe6 {[%clk 00:01:27]} {[%emt
00:00:03]} 49. Ke1 {[%clk 00:00:26]} {[%emt 00:00:06]} 0-1

[Event "MCR rapid mládeže 2023 U16"]
[Site "Harachov, Czech Republic"]
[Date "2023.09.09"]
[Round "6.30"]
[White "Moravec, Rene"]
[Black "Gernert , Tomas"]
[Result "1/2-1/2"]
[TimeControl "20min+5s/move"]
[WhiteElo "1165"]
[BlackElo "1236"]

1. e4 {[%clk 00:20:08]} {[%emt 00:00:02]} c5 {[%clk 00:20:10]} {[%emt
00:00:01]} 2. Nf3 {[%clk 00:20:11]} {[%emt 00:00:02]} Nc6 {[%clk 00:20:14]}
{[%emt 00:00:01]} 3. Bc4 {[%clk 00:20:12]} {[%emt 00:00:04]} g6 {[%clk
00:20:16]} {[%emt 00:00:03]} 4. O-O {[%clk 00:20:13]} {[%emt 00:00:03]} Bg7
{[%clk 00:20:20]} {[%emt 00:00:02]} 5. c3 {[%clk 00:20:13]} {[%emt 00:00:05]}
Nf6 {[%clk 00:20:08]} {[%emt 00:00:17]} 6. Re1 {[%clk 00:20:14]} {[%emt
00:00:03]} d5 {[%clk 00:19:35]} {[%emt 00:00:38]} 7. exd5 {[%clk 00:20:13]}
{[%emt 00:00:07]} Nxd5 {[%clk 00:19:38]} {[%emt 00:00:02]} 8. Qb3 {[%clk
00:19:47]} {[%emt 00:00:31]} Na5 {[%clk 00:18:58]} {[%emt 00:00:44]} 9. Bb5+
{[%clk 00:17:54]} {[%emt 00:01:59]} Bd7 {[%clk 00:16:31]} {[%emt 00:02:32]} 10.
Bxd7+ {[%clk 00:17:05]} {[%emt 00:00:53]} Qxd7 {[%clk 00:16:27]} {[%emt
00:00:10]} 11. Qc2 {[%clk 00:16:03]} {[%emt 00:01:07]} O-O {[%clk 00:15:49]}
{[%emt 00:00:43]} 12. d3 {[%clk 00:14:27]} {[%emt 00:01:40]} Rfd8 {[%clk
00:13:54]} {[%emt 00:02:01]} 13. Bd2 {[%clk 00:13:03]} Nb6 {[%clk 00:13:12]}
{[%emt 00:02:16]} 14. c4 {[%clk 00:10:22]} Nc6 {[%clk 00:13:01]} {[%emt
00:03:03]} 15. Re3 {[%clk 00:08:49]} Bh6 {[%clk 00:12:31]} {[%emt 00:02:14]} 16.
Re2 {[%clk 00:07:55]} Bxd2 {[%clk 00:12:32]} {[%emt 00:01:01]} 17. Rxd2 {[%clk
00:07:52]} Nb4 {[%clk 00:12:22]} {[%emt 00:00:24]} 18. Qc3 {[%clk 00:06:57]}
Na4 {[%clk 00:08:39]} {[%emt 00:04:48]} 19. Qc1 {[%clk 00:04:44]} Nxd3 {[%clk
00:07:43]} {[%emt 00:03:19]} 20. Qf1 {[%clk 00:03:23]} {[%emt 00:01:24]} Qf5
{[%clk 00:07:02]} {[%emt 00:00:48]} 21. Na3 {[%clk 00:02:22]} {[%emt 00:01:06]}
Ne5 {[%clk 00:05:34]} {[%emt 00:01:33]} 22. Rxd8+ {[%clk 00:02:15]} {[%emt
00:00:12]} Rxd8 {[%clk 00:05:38]} {[%emt 00:00:01]} 23. Nxe5 {[%clk 00:02:17]}
{[%emt 00:00:03]} Qxe5 {[%clk 00:05:41]} {[%emt 00:00:02]} 24. Qe1 {[%clk
00:02:11]} {[%emt 00:00:10]} Qxb2 {[%clk 00:04:11]} {[%emt 00:01:35]} 25. Nb5
{[%clk 00:01:45]} {[%emt 00:00:30]} a6 {[%clk 00:03:38]} {[%emt 00:00:40]} 26.
Nc7 {[%clk 00:01:22]} {[%emt 00:00:27]} Qc3 {[%clk 00:03:38]} {[%emt 00:00:06]}
27. Qxc3 {[%clk 00:00:37]} {[%emt 00:00:49]} Nxc3 {[%clk 00:03:41]} {[%emt
00:00:02]} 28. h3 {[%clk 00:00:40]} {[%emt 00:00:03]} Rd1+ {[%clk 00:03:34]}
{[%emt 00:00:12]} 29. Rxd1 {[%clk 00:00:42]} {[%emt 00:00:03]} Nxd1 {[%clk
00:03:37]} {[%emt 00:00:01]} 30. Nd5 {[%clk 00:00:46]} {[%emt 00:00:01]} e6
{[%clk 00:03:40]} {[%emt 00:00:03]} 31. Nf6+ {[%clk 00:00:40]} {[%emt
00:00:10]} Kg7 {[%clk 00:03:43]} {[%emt 00:00:03]} 32. Nd7 {[%clk 00:00:44]}
{[%emt 00:00:01]} Nb2 {[%clk 00:03:15]} {[%emt 00:00:33]} 33. Nxc5 {[%clk
00:00:44]} {[%emt 00:00:05]} Nxc4 {[%clk 00:03:18]} {[%emt 00:00:03]} 34. Nxb7
{[%clk 00:00:46]} {[%emt 00:00:01]} a5 {[%clk 00:03:22]} {[%emt 00:00:02]} 35.
a4 {[%clk 00:00:44]} {[%emt 00:00:07]} Kf6 {[%clk 00:03:22]} {[%emt 00:00:05]}
36. Kf1 {[%clk 00:00:47]} {[%emt 00:00:02]} Ke5 {[%clk 00:03:22]} {[%emt
00:00:04]} 37. Ke2 {[%clk 00:00:51]} {[%emt 00:00:01]} Kd4 {[%clk 00:03:14]}
{[%emt 00:00:13]} 38. Nd8 {[%clk 00:00:45]} {[%emt 00:00:11]} f5 {[%clk
00:00:57]} {[%emt 00:02:22]} 39. Nxe6+ {[%clk 00:00:44]} {[%emt 00:00:05]} Kd5
{[%clk 00:01:01]} {[%emt 00:00:02]} 40. Nf4+ {[%clk 00:00:43]} {[%emt
00:00:05]} Kd6 {[%clk 00:00:49]} {[%emt 00:00:17]} 41. Kd3 {[%clk 00:00:41]}
{[%emt 00:00:07]} Nb2+ {[%clk 00:00:25]} {[%emt 00:00:30]} 42. Kc3 {[%clk
00:00:42]} {[%emt 00:00:04]} Nxa4+ {[%clk 00:00:28]} {[%emt 00:00:02]} 43. Kb3
{[%clk 00:00:43]} {[%emt 00:00:03]} Nc5+ {[%clk 00:00:31]} {[%emt 00:00:02]} 44.
Kc4 {[%clk 00:00:45]} {[%emt 00:00:03]} a4 {[%clk 00:00:34]} {[%emt 00:00:03]}
45. Kb4 {[%clk 00:00:47]} {[%emt 00:00:02]} g5 {[%clk 00:00:30]} {[%emt
00:00:09]} 46. Ne2 {[%clk 00:00:44]} {[%emt 00:00:09]} h5 {[%clk 00:00:27]}
{[%emt 00:00:08]} 47. f3 {[%clk 00:00:47]} {[%emt 00:00:02]} Kd5 {[%clk
00:00:17]} {[%emt 00:00:15]} 48. Ng3 {[%clk 00:00:45]} {[%emt 00:00:06]} g4
{[%clk 00:00:20]} {[%emt 00:00:03]} 49. fxg4 {[%clk 00:00:47]} {[%emt
00:00:03]} fxg4 {[%clk 00:00:21]} {[%emt 00:00:03]} 50. hxg4 {[%clk 00:00:49]}
{[%emt 00:00:02]} hxg4 {[%clk 00:00:25]} {[%emt 00:00:01]} 51. Ne2 {[%clk
00:00:45]} {[%emt 00:00:09]} Nd3+ {[%clk 00:00:26]} {[%emt 00:00:05]} 52. Kxa4
{[%clk 00:00:45]} {[%emt 00:00:04]} Ne1 {[%clk 00:00:28]} {[%emt 00:00:03]} 53.
g3 {[%clk 00:00:48]} {[%emt 00:00:02]} Ke4 {[%clk 00:00:25]} {[%emt 00:00:02]}
54. Kb3 {[%clk 00:00:49]} {[%emt 00:00:05]} Kf3 {[%clk 00:00:33]} {[%emt
00:00:02]} 55. Nd4 {[%clk 00:00:50]} {[%emt 00:00:04]} Kxg3 {[%clk 00:00:35]}
{[%emt 00:00:04]} 56. Kc3 {[%clk 00:00:54]} {[%emt 00:00:01]} Kf2 {[%clk
00:00:37]} {[%emt 00:00:02]} 57. Nf5 {[%clk 00:00:56]} {[%emt 00:00:03]} Nf3
{[%clk 00:00:33]} {[%emt 00:00:08]} 58. Kd3 {[%clk 00:00:41]} {[%emt 00:00:21]}
Ng5 {[%clk 00:00:29]} {[%emt 00:00:10]} 59. Kd4 {[%clk 00:00:28]} {[%emt
00:00:14]} Ne6+ {[%clk 00:00:22]} {[%emt 00:00:15]} 60. Ke5 {[%clk 00:00:28]}
{[%emt 00:00:04]} Ng7 {[%clk 00:00:15]} {[%emt 00:00:13]} 61. Kf4 {[%clk
00:00:25]} {[%emt 00:00:07]} Nxf5 {[%clk 00:00:06]} {[%emt 00:00:15]} 62. Kxg4
{[%clk 00:00:28]} {[%emt 00:00:01]} 1/2-1/2